[Event "Titled Tuesday Blitz February 07 Early 2023"]
[White "Saydaliev, Saidakbar"]
[Black "Ilinca Ilinca, Felix Antonio"]
[WhiteFideId "14203693"]
[BlackFideId "54764998"]
[WhiteElo "2434"]
[BlackElo "2266"]
[Result "0-1"]
[Round "02"]
[TimeControl "180+2"]
[Date "2023.02.07"]
[WhiteClock "0:00:46"]
[BlackClock "0:00:31"]

1. b3 {[%clk 0:02:57]}  e5 {[%clk 0:02:56]} 2. Bb2 {[%clk 0:02:56]}  Nc6 {[%clk 0:02:57]} 3. e3 {[%clk 0:02:56]}  d5 {[%clk 0:02:55]} 4. Bb5 {[%clk 0:02:56]}  Ne7 {[%clk 0:02:54]} 5. Bxe5 {[%clk 0:02:53]}  a6 {[%clk 0:02:54]} 6. Bxc6+ {[%clk 0:02:53]}  Nxc6 {[%clk 0:02:55]} 7. Bb2 {[%clk 0:02:52]}  Qg5 {[%clk 0:02:49]} 8. Qf3 {[%clk 0:02:39]}  Bg4 {[%clk 0:02:37]} 9. Qg3 {[%clk 0:02:39]}  Bd6 {[%clk 0:02:31]} 10. f4 {[%clk 0:02:39]}  Qf5 {[%clk 0:02:28]} 11. h3 {[%clk 0:02:34]}  Qxc2 {[%clk 0:02:08]} 12. Bxg7 {[%clk 0:02:33]}  Rg8 {[%clk 0:02:04]} 13. Qxg4 {[%clk 0:02:33]}  h5 {[%clk 0:02:03]} 14. Qg5 {[%clk 0:02:09]}  Be7 {[%clk 0:01:31]} 15. Qh6 {[%clk 0:02:02]}  Qc1+ {[%clk 0:01:29]} 16. Ke2 {[%clk 0:01:57]}  d4 {[%clk 0:01:27]} 17. Qh7 {[%clk 0:01:43]}  O-O-O {[%clk 0:01:17]} 18. g4 {[%clk 0:01:08]}  dxe3 {[%clk 0:01:03]} 19. dxe3 {[%clk 0:00:58]}  Qd1+ {[%clk 0:00:57]} 20. Kf2 {[%clk 0:00:58]}  Bh4+ {[%clk 0:00:57]} 21. Kg2 {[%clk 0:00:58]}  Rxg7 {[%clk 0:00:39]} 22. Qxg7 {[%clk 0:00:53]}  Qc2+ {[%clk 0:00:39]} 23. Kf3 {[%clk 0:00:45]}  Qf2+ {[%clk 0:00:35]} 24. Ke4 {[%clk 0:00:46]}  Qg2+ {[%clk 0:00:33]} 25. Nf3 {[%clk 0:00:46]}  Qc2# {[%clk 0:00:31]} 0-1


[Site "https://www.chess.com"]

[Event "Titled Tuesday Blitz February 07 Early 2023"]
[White "Fernandez Guillen, Ernesto J."]
[Black "Melaugh, Shane"]
[WhiteFideId "3512428"]
[BlackFideId "2509580"]
[WhiteElo "2477"]
[BlackElo "2115"]
[Result "0-1"]
[Round "02"]
[TimeControl "180+2"]
[Date "2023.02.07"]
[WhiteClock "0:00:05"]
[BlackClock "0:00:03"]

1. e4 {[%clk 0:03:00]}  c5 {[%clk 0:02:59]} 2. Nf3 {[%clk 0:03:00]}  e6 {[%clk 0:02:58]} 3. d4 {[%clk 0:03:00]}  cxd4 {[%clk 0:02:59]} 4. Nxd4 {[%clk 0:03:01]}  Nf6 {[%clk 0:02:59]} 5. Nc3 {[%clk 0:03:00]}  Nc6 {[%clk 0:02:59]} 6. Nxc6 {[%clk 0:03:00]}  bxc6 {[%clk 0:02:58]} 7. Bd3 {[%clk 0:03:01]}  d5 {[%clk 0:02:57]} 8. O-O {[%clk 0:02:59]}  Be7 {[%clk 0:02:56]} 9. Re1 {[%clk 0:02:58]}  O-O {[%clk 0:02:55]} 10. e5 {[%clk 0:02:57]}  Nd7 {[%clk 0:02:47]} 11. Qh5 {[%clk 0:02:07]}  f5 {[%clk 0:02:40]} 12. Bd2 {[%clk 0:01:53]}  Rb8 {[%clk 0:02:27]} 13. Rab1 {[%clk 0:01:51]}  Nc5 {[%clk 0:02:27]} 14. Ne2 {[%clk 0:01:32]}  Ne4 {[%clk 0:01:48]} 15. Be3 {[%clk 0:01:24]}  Bc5 {[%clk 0:01:24]} 16. Bxe4 {[%clk 0:00:58]}  Bxe3 {[%clk 0:01:23]} 17. fxe3 {[%clk 0:00:59]}  fxe4 {[%clk 0:01:18]} 18. Rf1 {[%clk 0:00:54]}  Bd7 {[%clk 0:01:12]} 19. c3 {[%clk 0:00:50]}  Qb6 {[%clk 0:01:12]} 20. Nd4 {[%clk 0:00:46]}  c5 {[%clk 0:01:08]} 21. Ne2 {[%clk 0:00:42]}  Rxf1+ {[%clk 0:00:31]} 22. Rxf1 {[%clk 0:00:41]}  Be8 {[%clk 0:00:29]} 23. Qh4 {[%clk 0:00:32]}  Bf7 {[%clk 0:00:24]} 24. Qe7 {[%clk 0:00:21]}  Rb7 {[%clk 0:00:20]} 25. Qg5 {[%clk 0:00:21]}  h6 {[%clk 0:00:17]} 26. Qg3 {[%clk 0:00:15]}  Qxb2 {[%clk 0:00:15]} 27. Qf2 {[%clk 0:00:15]}  Qxa2 {[%clk 0:00:13]} 28. g4 {[%clk 0:00:15]}  Qa5 {[%clk 0:00:08]} 29. h4 {[%clk 0:00:14]}  Qd8 {[%clk 0:00:08]} 30. Qf4 {[%clk 0:00:14]}  Qxh4 {[%clk 0:00:07]} 31. Ng3 {[%clk 0:00:12]}  Qg5 {[%clk 0:00:06]} 32. Qxg5 {[%clk 0:00:11]}  hxg5 {[%clk 0:00:07]} 33. Ra1 {[%clk 0:00:11]}  Be8 {[%clk 0:00:06]} 34. Ra5 {[%clk 0:00:11]}  Bb5 {[%clk 0:00:06]} 35. Kf2 {[%clk 0:00:11]}  a6 {[%clk 0:00:06]} 36. Ke1 {[%clk 0:00:10]}  Bc4 {[%clk 0:00:06]} 37. Rxc5 {[%clk 0:00:10]}  Rb1+ {[%clk 0:00:05]} 38. Kf2 {[%clk 0:00:09]}  Rb2+ {[%clk 0:00:06]} 39. Kg1 {[%clk 0:00:09]}  Rc2 {[%clk 0:00:05]} 40. Rc7 {[%clk 0:00:09]}  Rxc3 {[%clk 0:00:05]} 41. Nh5 {[%clk 0:00:09]}  Rxe3 {[%clk 0:00:04]} 42. Rxg7+ {[%clk 0:00:09]}  Kf8 {[%clk 0:00:04]} 43. Ra7 {[%clk 0:00:05]}  Re1+ {[%clk 0:00:03]} 44. Kg2 {[%clk 0:00:04]}  e3 {[%clk 0:00:03]} 45. Nf6 {[%clk 0:00:05]}  e2 {[%clk 0:00:01]} 46. Ra8+ {[%clk 0:00:04]}  Ke7 {[%clk 0:00:02]} 47. Ra7+ {[%clk 0:00:05]}  Kd8 {[%clk 0:00:02]} 48. Nd7 {[%clk 0:00:02]}  Rg1+ {[%clk 0:00:01]} 49. Kxg1 {[%clk 0:00:03]}  e1=Q+ {[%clk 0:00:01]} 50. Kg2 {[%clk 0:00:04]}  Qe2+ {[%clk 0:00:02]} 51. Kg3 {[%clk 0:00:04]}  Qe3+ {[%clk 0:00:02]} 52. Kg2 {[%clk 0:00:05]}  Qxa7 {[%clk 0:00:03]} 0-1


[Site "https://www.chess.com"]

[Event "Titled Tuesday Blitz February 07 Early 2023"]
[White "Balabayeva, Xeniya"]
[Black "Mastrovasilis, Athanasios"]
[WhiteFideId "13719688"]
[BlackFideId "4201990"]
[WhiteElo "2191"]
[BlackElo "2497"]
[Result "0-1"]
[Round "02"]
[TimeControl "180+2"]
[Date "2023.02.07"]
[WhiteClock "0:00:01"]
[BlackClock "0:00:18"]

1. e4 {[%clk 0:03:00]}  c5 {[%clk 0:02:48]} 2. Nf3 {[%clk 0:02:59]}  g6 {[%clk 0:02:48]} 3. g3 {[%clk 0:02:55]}  Bg7 {[%clk 0:02:47]} 4. Bg2 {[%clk 0:02:55]}  Nc6 {[%clk 0:02:47]} 5. O-O {[%clk 0:02:55]}  e5 {[%clk 0:02:46]} 6. Nc3 {[%clk 0:02:52]}  Nge7 {[%clk 0:02:46]} 7. Re1 {[%clk 0:02:52]}  d6 {[%clk 0:02:46]} 8. Nd5 {[%clk 0:02:17]}  O-O {[%clk 0:02:46]} 9. Nxe7+ {[%clk 0:02:09]}  Qxe7 {[%clk 0:02:43]} 10. c3 {[%clk 0:02:06]}  f5 {[%clk 0:02:40]} 11. exf5 {[%clk 0:01:36]}  gxf5 {[%clk 0:02:38]} 12. d3 {[%clk 0:01:36]}  h6 {[%clk 0:02:32]} 13. Nh4 {[%clk 0:01:26]}  Kh7 {[%clk 0:02:10]} 14. f4 {[%clk 0:01:26]}  Bf6 {[%clk 0:02:03]} 15. Nf3 {[%clk 0:01:18]}  Qg7 {[%clk 0:02:02]} 16. Re2 {[%clk 0:01:05]}  Bd7 {[%clk 0:01:59]} 17. Bd2 {[%clk 0:01:04]}  Rae8 {[%clk 0:01:58]} 18. Qe1 {[%clk 0:01:01]}  c4 {[%clk 0:01:43]} 19. dxc4 {[%clk 0:00:27]}  e4 {[%clk 0:01:41]} 20. Nh4 {[%clk 0:00:27]}  Bxh4 {[%clk 0:01:40]} 21. gxh4 {[%clk 0:00:27]}  Rg8 {[%clk 0:01:28]} 22. Be3 {[%clk 0:00:27]}  Be6 {[%clk 0:01:23]} 23. Kh1 {[%clk 0:00:25]}  Bxc4 {[%clk 0:01:22]} 24. Rd2 {[%clk 0:00:25]}  Bd3 {[%clk 0:01:21]} 25. Qf2 {[%clk 0:00:25]}  Re6 {[%clk 0:01:14]} 26. h5 {[%clk 0:00:23]}  Qg4 {[%clk 0:01:13]} 27. Rg1 {[%clk 0:00:18]}  Qxh5 {[%clk 0:01:11]} 28. Bf1 {[%clk 0:00:12]}  Rxg1+ {[%clk 0:01:07]} 29. Qxg1 {[%clk 0:00:11]}  Rg6 {[%clk 0:01:04]} 30. Qf2 {[%clk 0:00:11]}  Bxf1 {[%clk 0:00:55]} 31. Qxf1 {[%clk 0:00:12]}  a6 {[%clk 0:00:46]} 32. Rf2 {[%clk 0:00:10]}  Ne7 {[%clk 0:00:45]} 33. Qc4 {[%clk 0:00:08]}  Rg7 {[%clk 0:00:35]} 34. Bd4 {[%clk 0:00:04]}  d5 {[%clk 0:00:21]} 35. Qf1 {[%clk 0:00:03]}  Rg4 {[%clk 0:00:20]} 36. h3 {[%clk 0:00:01]}  Rg3 {[%clk 0:00:20]} 37. Kh2 {[%clk 0:00:01]}  Qh4 {[%clk 0:00:18]} 0-1


[Site "https://www.chess.com"]

[Event "Titled Tuesday Blitz February 07 Early 2023"]
[White "Melikhov, Evgeny V."]
[Black "Csonka, Balazs"]
[WhiteFideId "4122046"]
[BlackFideId "742910"]
[WhiteElo "2269"]
[BlackElo "2496"]
[Result "0-1"]
[Round "02"]
[TimeControl "180+2"]
[Date "2023.02.07"]
[WhiteClock "0:00:01"]
[BlackClock "0:00:04"]

1. d4 {[%clk 0:03:00]}  Nf6 {[%clk 0:02:58]} 2. c4 {[%clk 0:03:01]}  g6 {[%clk 0:02:57]} 3. Nc3 {[%clk 0:03:00]}  d5 {[%clk 0:02:57]} 4. Nf3 {[%clk 0:02:59]}  Bg7 {[%clk 0:02:57]} 5. e3 {[%clk 0:03:00]}  O-O {[%clk 0:02:57]} 6. Be2 {[%clk 0:03:00]}  c5 {[%clk 0:02:56]} 7. O-O {[%clk 0:03:00]}  cxd4 {[%clk 0:02:54]} 8. exd4 {[%clk 0:03:00]}  Nc6 {[%clk 0:02:54]} 9. Re1 {[%clk 0:02:56]}  dxc4 {[%clk 0:02:38]} 10. Bxc4 {[%clk 0:02:55]}  a6 {[%clk 0:02:39]} 11. d5 {[%clk 0:02:48]}  Na5 {[%clk 0:02:35]} 12. Bf1 {[%clk 0:02:41]}  b5 {[%clk 0:02:32]} 13. Bg5 {[%clk 0:02:12]}  Bb7 {[%clk 0:02:29]} 14. b3 {[%clk 0:01:42]}  b4 {[%clk 0:01:56]} 15. Na4 {[%clk 0:01:26]}  Nxd5 {[%clk 0:01:53]} 16. Rc1 {[%clk 0:01:20]}  Rc8 {[%clk 0:00:53]} 17. Nc5 {[%clk 0:01:15]}  Qb6 {[%clk 0:00:42]} 18. Nxb7 {[%clk 0:01:11]}  Qxb7 {[%clk 0:00:43]} 19. Qd3 {[%clk 0:01:02]}  h6 {[%clk 0:00:28]} 20. Bd2 {[%clk 0:00:50]}  Nc3 {[%clk 0:00:23]} 21. Qxa6 {[%clk 0:00:43]}  Qxa6 {[%clk 0:00:22]} 22. Bxa6 {[%clk 0:00:43]}  Ra8 {[%clk 0:00:22]} 23. Bf1 {[%clk 0:00:34]}  Nxa2 {[%clk 0:00:17]} 24. Rc7 {[%clk 0:00:27]}  e6 {[%clk 0:00:11]} 25. Rb1 {[%clk 0:00:18]}  Nc3 {[%clk 0:00:10]} 26. Re1 {[%clk 0:00:14]}  Nxb3 {[%clk 0:00:09]} 27. Be3 {[%clk 0:00:13]}  Nd5 {[%clk 0:00:09]} 28. Rb7 {[%clk 0:00:12]}  Rab8 {[%clk 0:00:06]} 29. Rxb8 {[%clk 0:00:09]}  Rxb8 {[%clk 0:00:06]} 30. Bc4 {[%clk 0:00:08]}  Na5 {[%clk 0:00:06]} 31. Bd3 {[%clk 0:00:07]}  b3 {[%clk 0:00:06]} 32. Bd4 {[%clk 0:00:07]}  b2 {[%clk 0:00:04]} 33. Bxg7 {[%clk 0:00:06]}  Kxg7 {[%clk 0:00:05]} 34. Nd4 {[%clk 0:00:05]}  Nc3 {[%clk 0:00:05]} 35. Bb1 {[%clk 0:00:05]}  Rd8 {[%clk 0:00:05]} 36. Nc2 {[%clk 0:00:01]}  Nc4 {[%clk 0:00:04]} 0-1


[Site "https://www.chess.com"]

[Event "Titled Tuesday Blitz February 07 Early 2023"]
[White "Taspinar, Yanki"]
[Black "Mouhamad, Joachim"]
[WhiteFideId "34561188"]
[BlackFideId "656410"]
[WhiteElo "2262"]
[BlackElo "2238"]
[Result "1-0"]
[Round "02"]
[TimeControl "180+2"]
[Date "2023.02.07"]
[WhiteClock "0:00:06"]
[BlackClock "0:00:05"]

1. Nf3 {[%clk 0:03:00]}  c5 {[%clk 0:02:54]} 2. g3 {[%clk 0:02:59]}  Nc6 {[%clk 0:02:53]} 3. Bg2 {[%clk 0:03:00]}  e5 {[%clk 0:02:54]} 4. O-O {[%clk 0:03:01]}  e4 {[%clk 0:02:54]} 5. Ne1 {[%clk 0:03:00]}  d5 {[%clk 0:02:53]} 6. d3 {[%clk 0:03:01]}  Nf6 {[%clk 0:02:49]} 7. Bg5 {[%clk 0:03:00]}  exd3 {[%clk 0:02:48]} 8. Nxd3 {[%clk 0:03:01]}  c4 {[%clk 0:02:44]} 9. Nf4 {[%clk 0:02:59]}  Be6 {[%clk 0:02:40]} 10. Nc3 {[%clk 0:02:48]}  d4 {[%clk 0:02:36]} 11. Ncd5 {[%clk 0:02:47]}  Bc5 {[%clk 0:02:24]} 12. c3 {[%clk 0:02:29]}  h6 {[%clk 0:02:18]} 13. Bxf6 {[%clk 0:02:18]}  gxf6 {[%clk 0:02:18]} 14. cxd4 {[%clk 0:02:15]}  Bxd4 {[%clk 0:02:14]} 15. e3 {[%clk 0:02:06]}  Bxb2 {[%clk 0:01:57]} 16. Rb1 {[%clk 0:02:03]}  c3 {[%clk 0:01:57]} 17. Qh5 {[%clk 0:01:58]}  Bxd5 {[%clk 0:01:43]} 18. Nxd5 {[%clk 0:01:34]}  Qd6 {[%clk 0:01:30]} 19. Qf5 {[%clk 0:01:29]}  Qe5 {[%clk 0:01:00]} 20. Nxf6+ {[%clk 0:01:23]}  Ke7 {[%clk 0:01:00]} 21. Nd5+ {[%clk 0:01:23]}  Kf8 {[%clk 0:00:53]} 22. Qc2 {[%clk 0:01:06]}  Rd8 {[%clk 0:00:50]} 23. Rbd1 {[%clk 0:01:00]}  h5 {[%clk 0:00:48]} 24. h4 {[%clk 0:00:59]}  a5 {[%clk 0:00:45]} 25. a3 {[%clk 0:00:44]}  Kg7 {[%clk 0:00:45]} 26. Qb3 {[%clk 0:00:41]}  Rd7 {[%clk 0:00:35]} 27. Nf4 {[%clk 0:00:41]}  Rhd8 {[%clk 0:00:30]} 28. Rxd7 {[%clk 0:00:35]}  Rxd7 {[%clk 0:00:31]} 29. Bf3 {[%clk 0:00:35]}  Kf8 {[%clk 0:00:19]} 30. Bxh5 {[%clk 0:00:30]}  Nd8 {[%clk 0:00:11]} 31. Bg4 {[%clk 0:00:27]}  Rc7 {[%clk 0:00:09]} 32. Qc2 {[%clk 0:00:25]}  a4 {[%clk 0:00:08]} 33. Bf3 {[%clk 0:00:17]}  Qb5 {[%clk 0:00:07]} 34. h5 {[%clk 0:00:16]}  Qb3 {[%clk 0:00:07]} 35. Be4 {[%clk 0:00:17]}  Qxc2 {[%clk 0:00:07]} 36. Bxc2 {[%clk 0:00:17]}  Ne6 {[%clk 0:00:07]} 37. Nxe6+ {[%clk 0:00:14]}  fxe6 {[%clk 0:00:08]} 38. Rd1 {[%clk 0:00:14]}  b5 {[%clk 0:00:08]} 39. h6 {[%clk 0:00:13]}  Ke7 {[%clk 0:00:06]} 40. h7 {[%clk 0:00:12]}  Rc8 {[%clk 0:00:07]} 41. Rd4 {[%clk 0:00:11]}  Rh8 {[%clk 0:00:06]} 42. Kg2 {[%clk 0:00:10]}  Bxa3 {[%clk 0:00:03]} 43. Rg4 {[%clk 0:00:09]}  Bd6 {[%clk 0:00:03]} 44. Rg8 {[%clk 0:00:09]}  Be5 {[%clk 0:00:04]} 45. f4 {[%clk 0:00:09]}  Bf6 {[%clk 0:00:04]} 46. g4 {[%clk 0:00:07]}  Kf7 {[%clk 0:00:04]} 47. Bg6+ {[%clk 0:00:04]}  Ke7 {[%clk 0:00:04]} 48. g5 {[%clk 0:00:05]}  Bg7 {[%clk 0:00:03]} 49. Rxg7+ {[%clk 0:00:04]}  Kd6 {[%clk 0:00:03]} 50. Rg8 {[%clk 0:00:05]}  Rxh7 {[%clk 0:00:03]} 51. Bxh7 {[%clk 0:00:05]}  b4 {[%clk 0:00:04]} 52. Ra8 {[%clk 0:00:05]}  b3 {[%clk 0:00:03]} 53. Rxa4 {[%clk 0:00:05]}  c2 {[%clk 0:00:04]} 54. Bxc2 {[%clk 0:00:04]}  bxc2 {[%clk 0:00:04]} 55. Rc4 {[%clk 0:00:05]}  Kd5 {[%clk 0:00:04]} 56. Rxc2 {[%clk 0:00:05]}  Ke4 {[%clk 0:00:05]} 57. Kf2 {[%clk 0:00:05]}  Kf5 {[%clk 0:00:05]} 58. Rc5+ {[%clk 0:00:05]}  Ke4 {[%clk 0:00:05]} 59. Re5+ {[%clk 0:00:06]}  Kd3 {[%clk 0:00:05]} 60. g6 {[%clk 0:00:06]} 1-0


[Site "https://www.chess.com"]

[Event "Titled Tuesday Blitz February 07 Early 2023"]
[White "Kostiukov, Alexandr"]
[Black "Dehtiarov, Roman"]
[WhiteFideId "14108100"]
[BlackFideId "14186640"]
[WhiteElo "2271"]
[BlackElo "2289"]
[Result "0-1"]
[Round "02"]
[TimeControl "180+2"]
[Date "2023.02.07"]
[WhiteClock "0:00:05"]
[BlackClock "0:01:16"]

1. g3 {[%clk 0:03:00]}  d5 {[%clk 0:02:59]} 2. Bg2 {[%clk 0:03:00]}  Nf6 {[%clk 0:02:59]} 3. d3 {[%clk 0:03:00]}  e6 {[%clk 0:03:00]} 4. e4 {[%clk 0:03:00]}  c6 {[%clk 0:03:00]} 5. e5 {[%clk 0:03:00]}  Nfd7 {[%clk 0:03:00]} 6. Qe2 {[%clk 0:03:01]}  c5 {[%clk 0:03:00]} 7. Nf3 {[%clk 0:03:01]}  Nc6 {[%clk 0:03:00]} 8. O-O {[%clk 0:03:01]}  Be7 {[%clk 0:03:00]} 9. c4 {[%clk 0:03:01]}  d4 {[%clk 0:02:59]} 10. Re1 {[%clk 0:02:59]}  Qc7 {[%clk 0:02:59]} 11. Bf4 {[%clk 0:02:58]}  b6 {[%clk 0:02:59]} 12. h4 {[%clk 0:02:58]}  Bb7 {[%clk 0:03:00]} 13. Na3 {[%clk 0:02:58]}  a6 {[%clk 0:02:59]} 14. Nc2 {[%clk 0:02:59]}  h6 {[%clk 0:03:00]} 15. h5 {[%clk 0:02:58]}  O-O-O {[%clk 0:02:57]} 16. b4 {[%clk 0:02:48]}  cxb4 {[%clk 0:02:54]} 17. Ncxd4 {[%clk 0:02:41]}  Nxd4 {[%clk 0:02:55]} 18. Nxd4 {[%clk 0:02:40]}  Nc5 {[%clk 0:02:56]} 19. Bxb7+ {[%clk 0:02:17]}  Qxb7 {[%clk 0:02:57]} 20. Be3 {[%clk 0:01:59]}  Rd7 {[%clk 0:02:47]} 21. Nb3 {[%clk 0:01:42]}  Nxd3 {[%clk 0:02:41]} 22. Red1 {[%clk 0:01:42]}  Rhd8 {[%clk 0:02:40]} 23. Bd4 {[%clk 0:01:25]}  Nc5 {[%clk 0:02:21]} 24. Bxc5 {[%clk 0:01:08]}  Bxc5 {[%clk 0:02:19]} 25. Rxd7 {[%clk 0:01:00]}  Qxd7 {[%clk 0:02:13]} 26. Qe4 {[%clk 0:00:41]}  Qb7 {[%clk 0:02:05]} 27. Qf4 {[%clk 0:00:40]}  a5 {[%clk 0:02:00]} 28. Nxc5 {[%clk 0:00:21]}  bxc5 {[%clk 0:02:01]} 29. Qe3 {[%clk 0:00:20]}  Rd4 {[%clk 0:01:57]} 30. Rc1 {[%clk 0:00:20]}  a4 {[%clk 0:01:55]} 31. Qe2 {[%clk 0:00:12]}  Qe4 {[%clk 0:01:52]} 32. Qf1 {[%clk 0:00:08]}  Kc7 {[%clk 0:01:32]} 33. Re1 {[%clk 0:00:08]}  Qf3 {[%clk 0:01:28]} 34. Qh3 {[%clk 0:00:08]}  b3 {[%clk 0:01:22]} 35. axb3 {[%clk 0:00:08]}  axb3 {[%clk 0:01:23]} 36. Qf1 {[%clk 0:00:08]}  b2 {[%clk 0:01:23]} 37. Rb1 {[%clk 0:00:07]}  Rd2 {[%clk 0:01:19]} 38. Qg2 {[%clk 0:00:07]}  Rd1+ {[%clk 0:01:13]} 39. Rxd1 {[%clk 0:00:03]}  Qxd1+ {[%clk 0:01:14]} 40. Kh2 {[%clk 0:00:04]}  b1=Q {[%clk 0:01:15]} 41. Qa8 {[%clk 0:00:05]}  Qg1+ {[%clk 0:01:15]} 42. Kh3 {[%clk 0:00:05]}  Qh1+ {[%clk 0:01:16]} 0-1


[Site "https://www.chess.com"]

[Event "Titled Tuesday Blitz February 07 Early 2023"]
[White "Nazari, Arad"]
[Black "Jovic, Stanoje"]
[WhiteFideId "12577324"]
[BlackFideId "905020"]
[WhiteElo "2367"]
[BlackElo "2075"]
[Result "0-1"]
[Round "02"]
[TimeControl "180+2"]
[Date "2023.02.07"]
[WhiteClock "0:00:50"]
[BlackClock "0:00:22"]

1. e4 {[%clk 0:03:00]}  c6 {[%clk 0:02:59]} 2. Nf3 {[%clk 0:03:01]}  d5 {[%clk 0:02:59]} 3. Nc3 {[%clk 0:03:01]}  dxe4 {[%clk 0:02:56]} 4. Nxe4 {[%clk 0:03:02]}  Nf6 {[%clk 0:02:56]} 5. Qe2 {[%clk 0:03:01]}  Nxe4 {[%clk 0:02:56]} 6. Qxe4 {[%clk 0:03:02]}  Nd7 {[%clk 0:02:56]} 7. Bc4 {[%clk 0:03:02]}  Nf6 {[%clk 0:02:56]} 8. Ne5 {[%clk 0:03:03]}  e6 {[%clk 0:02:56]} 9. Qe2 {[%clk 0:03:04]}  Bd6 {[%clk 0:02:43]} 10. d4 {[%clk 0:03:03]}  O-O {[%clk 0:02:42]} 11. Bg5 {[%clk 0:03:03]}  Be7 {[%clk 0:02:35]} 12. O-O-O {[%clk 0:03:03]}  a5 {[%clk 0:02:35]} 13. h4 {[%clk 0:03:01]}  a4 {[%clk 0:02:28]} 14. a3 {[%clk 0:02:53]}  Nd5 {[%clk 0:02:24]} 15. Bxd5 {[%clk 0:02:44]}  cxd5 {[%clk 0:02:19]} 16. Bxe7 {[%clk 0:02:41]}  Qxe7 {[%clk 0:02:18]} 17. h5 {[%clk 0:02:42]}  Bd7 {[%clk 0:02:13]} 18. Rh3 {[%clk 0:02:35]}  f6 {[%clk 0:02:03]} 19. Ng6 {[%clk 0:02:29]}  Qd6 {[%clk 0:01:43]} 20. Nxf8 {[%clk 0:02:27]}  Rxf8 {[%clk 0:01:41]} 21. Rg3 {[%clk 0:02:22]}  b5 {[%clk 0:01:37]} 22. Qd2 {[%clk 0:02:21]}  Rc8 {[%clk 0:01:29]} 23. Qh6 {[%clk 0:02:13]}  Qxg3 {[%clk 0:01:26]} 24. Qd2 {[%clk 0:01:59]}  Qxg2 {[%clk 0:01:12]} 25. h6 {[%clk 0:01:57]}  Qg5 {[%clk 0:01:05]} 26. f4 {[%clk 0:01:53]}  Qxh6 {[%clk 0:01:04]} 27. Kb1 {[%clk 0:01:53]}  Qg6 {[%clk 0:00:59]} 28. Rc1 {[%clk 0:01:50]}  Qf5 {[%clk 0:00:54]} 29. Ka2 {[%clk 0:01:48]}  Be8 {[%clk 0:00:51]} 30. c3 {[%clk 0:01:42]}  h5 {[%clk 0:00:46]} 31. Rg1 {[%clk 0:01:40]}  Bg6 {[%clk 0:00:40]} 32. Qe2 {[%clk 0:01:39]}  Rc4 {[%clk 0:00:39]} 33. Qf2 {[%clk 0:01:30]}  Kf7 {[%clk 0:00:36]} 34. Qg3 {[%clk 0:01:25]}  Qc2 {[%clk 0:00:30]} 35. Ka1 {[%clk 0:01:12]}  b4 {[%clk 0:00:28]} 36. f5 {[%clk 0:01:05]}  Qxf5 {[%clk 0:00:26]} 37. axb4 {[%clk 0:01:02]}  a3 {[%clk 0:00:26]} 38. b3 {[%clk 0:01:00]}  h4 {[%clk 0:00:22]} 39. Qe3 {[%clk 0:00:50]}  Qc2 {[%clk 0:00:22]} 0-1


[Site "https://www.chess.com"]

[Event "Titled Tuesday Blitz February 07 Early 2023"]
[White "Dong, Bao Nghia"]
[Black "Hoffmann, Asa"]
[WhiteFideId "12400343"]
[BlackFideId "2001470"]
[WhiteElo "2332"]
[BlackElo "2185"]
[Result "1-0"]
[Round "02"]
[TimeControl "180+2"]
[Date "2023.02.07"]
[WhiteClock "0:01:21"]
[BlackClock "0:00:15"]

1. d4 {[%clk 0:02:57]}  Nf6 {[%clk 0:02:57]} 2. Nf3 {[%clk 0:02:56]}  d6 {[%clk 0:02:56]} 3. g3 {[%clk 0:02:56]}  c6 {[%clk 0:02:56]} 4. Bg2 {[%clk 0:02:56]}  Bf5 {[%clk 0:02:56]} 5. O-O {[%clk 0:02:57]}  h6 {[%clk 0:02:55]} 6. Nbd2 {[%clk 0:02:39]}  Nbd7 {[%clk 0:02:55]} 7. b3 {[%clk 0:02:40]}  e5 {[%clk 0:02:54]} 8. Bb2 {[%clk 0:02:39]}  e4 {[%clk 0:02:52]} 9. Nh4 {[%clk 0:02:39]}  Bh7 {[%clk 0:02:51]} 10. Bh3 {[%clk 0:02:36]}  g5 {[%clk 0:02:47]} 11. Bxd7+ {[%clk 0:02:28]}  Qxd7 {[%clk 0:02:46]} 12. Ng2 {[%clk 0:02:29]}  Qh3 {[%clk 0:02:31]} 13. Ne3 {[%clk 0:02:28]}  d5 {[%clk 0:02:23]} 14. c4 {[%clk 0:02:27]}  Bd6 {[%clk 0:02:20]} 15. cxd5 {[%clk 0:02:24]}  cxd5 {[%clk 0:02:20]} 16. f3 {[%clk 0:02:22]}  Bxg3 {[%clk 0:02:14]} 17. hxg3 {[%clk 0:02:22]}  Qxg3+ {[%clk 0:02:14]} 18. Ng2 {[%clk 0:02:22]}  Nh5 {[%clk 0:02:09]} 19. Qe1 {[%clk 0:02:14]}  Qh3 {[%clk 0:02:07]} 20. fxe4 {[%clk 0:02:11]}  dxe4 {[%clk 0:02:02]} 21. Qf2 {[%clk 0:01:58]}  O-O {[%clk 0:02:00]} 22. Ne3 {[%clk 0:01:56]}  Nf4 {[%clk 0:01:56]} 23. Ndc4 {[%clk 0:01:51]}  Qh5 {[%clk 0:01:42]} 24. Qh2 {[%clk 0:01:43]}  Nxe2+ {[%clk 0:01:35]} 25. Kg2 {[%clk 0:01:38]}  Nf4+ {[%clk 0:01:33]} 26. Rxf4 {[%clk 0:01:26]}  Qxh2+ {[%clk 0:01:32]} 27. Kxh2 {[%clk 0:01:27]}  gxf4 {[%clk 0:01:32]} 28. Rg1+ {[%clk 0:01:27]}  Kh8 {[%clk 0:01:22]} 29. d5+ {[%clk 0:01:27]}  f6 {[%clk 0:01:22]} 30. Ng4 {[%clk 0:01:28]}  Bf5 {[%clk 0:00:26]} 31. Nxf6 {[%clk 0:01:22]}  Rf7 {[%clk 0:00:20]} 32. Nxe4+ {[%clk 0:01:21]}  Kh7 {[%clk 0:00:19]} 33. Nf6+ {[%clk 0:01:21]}  Rxf6 {[%clk 0:00:15]} 34. Bxf6 {[%clk 0:01:21]} 1-0


[Site "https://www.chess.com"]

[Event "Titled Tuesday Blitz February 07 Early 2023"]
[White "Pacan-Milej, Kosma"]
[Black "Sarkar, Justin"]
[WhiteFideId "21800537"]
[BlackFideId "2010011"]
[WhiteElo "2402"]
[BlackElo "2309"]
[Result "1-0"]
[Round "02"]
[TimeControl "180+2"]
[Date "2023.02.07"]
[WhiteClock "0:02:04"]
[BlackClock "0:00:01"]

1. d4 {[%clk 0:03:00]}  Nf6 {[%clk 0:02:30]} 2. c4 {[%clk 0:02:47]}  e6 {[%clk 0:02:27]} 3. Nc3 {[%clk 0:02:47]}  Bb4 {[%clk 0:02:26]} 4. e3 {[%clk 0:02:48]}  d5 {[%clk 0:02:22]} 5. a3 {[%clk 0:02:47]}  Bxc3+ {[%clk 0:02:19]} 6. bxc3 {[%clk 0:02:48]}  c5 {[%clk 0:02:11]} 7. cxd5 {[%clk 0:02:48]}  exd5 {[%clk 0:02:09]} 8. Bd3 {[%clk 0:02:48]}  Nc6 {[%clk 0:02:01]} 9. f3 {[%clk 0:02:48]}  h5 {[%clk 0:01:31]} 10. Ne2 {[%clk 0:02:46]}  h4 {[%clk 0:01:24]} 11. O-O {[%clk 0:02:45]}  Qa5 {[%clk 0:01:11]} 12. e4 {[%clk 0:02:39]}  b6 {[%clk 0:00:33]} 13. e5 {[%clk 0:02:39]}  Ng8 {[%clk 0:00:28]} 14. f4 {[%clk 0:02:38]}  Ba6 {[%clk 0:00:20]} 15. f5 {[%clk 0:02:36]}  Bxd3 {[%clk 0:00:19]} 16. Qxd3 {[%clk 0:02:37]}  c4 {[%clk 0:00:13]} 17. Qf3 {[%clk 0:02:37]}  O-O-O {[%clk 0:00:09]} 18. Bg5 {[%clk 0:02:31]}  f6 {[%clk 0:00:07]} 19. Bf4 {[%clk 0:02:27]}  Nge7 {[%clk 0:00:06]} 20. Qg4 {[%clk 0:02:23]}  Rdg8 {[%clk 0:00:02]} 21. Rfe1 {[%clk 0:02:09]}  Qa6 {[%clk 0:00:01]} 22. Kf2 {[%clk 0:02:04]} 1-0


[Site "https://www.chess.com"]